[Event "21th Rochefort Chess Festival - Masters"]
[Site "Rochefort, France"]
[Date "2023.02.13"]
[Round "4.2"]
[White "Ilamparthi A R"]
[Black "Ghosh, Diptayan"]
[Result "0-1"]
[TimeControl "1h30 + [30'']"]
[WhiteElo "2385"]
[BlackElo "2553"]

1. e4 {[%clk 01:30:58]} {[%emt 00:00:01]} e5 {[%clk 01:25:29]} {[%emt
00:05:32]} 2. Nf3 {[%clk 01:31:20]} {[%emt 00:00:08]} Nc6 {[%clk 01:25:54]}
{[%emt 00:00:05]} 3. Bb5 {[%clk 01:31:36]} {[%emt 00:00:14]} a6 {[%clk
01:26:19]} {[%emt 00:00:05]} 4. Ba4 {[%clk 01:32:00]} {[%emt 00:00:06]} Nge7
{[%clk 01:26:27]} {[%emt 00:00:22]} 5. c3 {[%clk 01:26:53]} {[%emt 00:05:37]}
Ng6 {[%clk 01:26:46]} {[%emt 00:00:11]} 6. O-O {[%clk 01:18:20]} {[%emt
00:09:03]} d6 {[%clk 01:26:08]} {[%emt 00:01:09]} 7. d4 {[%clk 01:17:39]}
{[%emt 00:01:11]} Bd7 {[%clk 01:26:31]} {[%emt 00:00:07]} 8. Be3 {[%clk
01:17:14]} {[%emt 00:00:55]} Be7 {[%clk 01:26:54]} {[%emt 00:00:06]} 9. Nbd2
{[%clk 01:16:34]} {[%emt 00:01:10]} O-O {[%clk 01:27:17]} {[%emt 00:00:07]} 10.
Re1 {[%clk 01:15:07]} {[%emt 00:01:57]} exd4 {[%clk 01:22:30]} {[%emt
00:05:17]} 11. cxd4 {[%clk 01:08:34]} {[%emt 00:07:04]} Nb4 {[%clk 01:22:36]}
{[%emt 00:00:24]} 12. Bb3 {[%clk 01:03:39]} {[%emt 00:05:25]} d5 {[%clk
01:17:39]} {[%emt 00:05:27]} 13. e5 {[%clk 00:46:37]} {[%emt 00:17:32]} Bf5
{[%clk 01:10:18]} {[%emt 00:07:50]} 14. Nf1 {[%clk 00:42:49]} {[%emt 00:04:19]}
Nd3 {[%clk 01:07:07]} {[%emt 00:03:41]} 15. Re2 {[%clk 00:42:24]} {[%emt
00:00:55]} Ndf4 {[%clk 01:06:48]} {[%emt 00:00:48]} 16. Re1 {[%clk 00:38:22]}
{[%emt 00:04:32]} Bb4 {[%clk 01:00:01]} {[%emt 00:07:17]} 17. Bd2 {[%clk
00:35:07]} {[%emt 00:03:45]} Bxd2 {[%clk 00:58:38]} {[%emt 00:01:52]} 18. Qxd2
{[%clk 00:34:53]} {[%emt 00:00:45]} Be4 {[%clk 00:55:59]} {[%emt 00:03:08]} 19.
Bd1 {[%clk 00:25:57]} {[%emt 00:09:27]} f6 {[%clk 00:49:21]} {[%emt 00:07:08]}
20. Ng3 {[%clk 00:11:38]} {[%emt 00:14:49]} Bxf3 {[%clk 00:45:39]} {[%emt
00:04:12]} 21. Bxf3 {[%clk 00:11:34]} {[%emt 00:00:34]} fxe5 {[%clk 00:46:03]}
{[%emt 00:00:06]} 22. dxe5 {[%clk 00:11:47]} {[%emt 00:00:18]} Nh4 {[%clk
00:37:03]} {[%emt 00:09:29]} 23. Re3 {[%clk 00:10:16]} {[%emt 00:02:01]} Nxf3+
{[%clk 00:28:31]} {[%emt 00:09:02]} 24. Rxf3 {[%clk 00:10:38]} {[%emt
00:00:08]} Qg5 {[%clk 00:28:46]} {[%emt 00:00:15]} 25. Qc3 {[%clk 00:08:30]}
{[%emt 00:02:38]} c6 {[%clk 00:26:46]} {[%emt 00:02:29]} 26. Re1 {[%clk
00:08:03]} {[%emt 00:00:57]} Rae8 {[%clk 00:27:07]} {[%emt 00:00:09]} 27. e6
{[%clk 00:03:27]} {[%emt 00:05:07]} Rxe6 {[%clk 00:24:45]} {[%emt 00:02:52]} 28.
Rxe6 {[%clk 00:03:49]} {[%emt 00:00:08]} Nxe6 {[%clk 00:25:11]} {[%emt
00:00:04]} 29. Rxf8+ {[%clk 00:04:10]} {[%emt 00:00:08]} Kxf8 {[%clk 00:24:53]}
{[%emt 00:00:48]} 30. h3 {[%clk 00:03:28]} {[%emt 00:01:12]} Qf4 {[%clk
00:22:09]} {[%emt 00:03:14]} 31. Qb3 {[%clk 00:03:21]} {[%emt 00:00:38]} Qf7
{[%clk 00:22:12]} {[%emt 00:00:27]} 32. Ne2 {[%clk 00:02:59]} {[%emt 00:00:52]}
Qd7 {[%clk 00:20:56]} {[%emt 00:01:46]} 33. Nc1 {[%clk 00:02:51]} {[%emt
00:00:38]} Ke8 {[%clk 00:10:48]} {[%emt 00:10:38]} 34. Qg3 {[%clk 00:02:01]}
{[%emt 00:01:19]} Qc7 {[%clk 00:10:24]} {[%emt 00:00:53]} 35. Qe3 {[%clk
00:01:50]} {[%emt 00:00:42]} Kd7 {[%clk 00:10:13]} {[%emt 00:00:41]} 36. Nd3
{[%clk 00:02:03]} {[%emt 00:00:17]} Qd6 {[%clk 00:10:33]} {[%emt 00:00:10]} 37.
b4 {[%clk 00:01:48]} {[%emt 00:00:45]} Kc7 {[%clk 00:10:01]} {[%emt 00:01:01]}
38. a4 {[%clk 00:01:04]} {[%emt 00:01:14]} a5 {[%clk 00:07:47]} {[%emt
00:02:45]} 39. bxa5 {[%clk 00:01:26]} {[%emt 00:00:08]} c5 {[%clk 00:08:16]}
{[%emt 00:00:01]} 40. Ne5 {[%clk 00:01:03]} {[%emt 00:00:53]} Kb8 {[%clk
00:05:42]} {[%emt 00:03:03]} 41. Nf7 {[%clk 00:25:01]} {[%emt 00:06:33]} Qd7
{[%clk 00:30:35]} {[%emt 00:05:36]} 42. Qe5+ {[%clk 00:24:25]} {[%emt
00:01:07]} Ka7 {[%clk 00:30:43]} {[%emt 00:00:22]} 43. Nd6 {[%clk 00:24:22]}
{[%emt 00:00:34]} Nc7 {[%clk 00:31:00]} {[%emt 00:00:13]} 44. h4 {[%clk
00:15:25]} {[%emt 00:09:27]} Ka6 {[%clk 00:29:23]} {[%emt 00:02:06]} 45. h5
{[%clk 00:11:37]} {[%emt 00:04:18]} c4 {[%clk 00:26:14]} {[%emt 00:03:39]} 46.
Nf5 {[%clk 00:09:02]} {[%emt 00:03:06]} Kxa5 {[%clk 00:24:40]} {[%emt
00:02:04]} 47. Nxg7 {[%clk 00:07:15]} {[%emt 00:02:16]} b5 {[%clk 00:23:15]}
{[%emt 00:01:55]} 48. axb5 {[%clk 00:07:02]} {[%emt 00:00:44]} Nxb5 {[%clk
00:23:18]} {[%emt 00:00:27]} 49. Ne6 {[%clk 00:05:48]} {[%emt 00:01:44]} c3
{[%clk 00:19:52]} {[%emt 00:03:55]} 50. Nf4 {[%clk 00:04:43]} {[%emt 00:01:36]}
d4 {[%clk 00:18:57]} {[%emt 00:01:25]} 51. Qe4 {[%clk 00:03:33]} {[%emt
00:01:40]} Qc8 {[%clk 00:16:49]} {[%emt 00:02:36]} 52. Nd3 {[%clk 00:02:43]}
{[%emt 00:01:22]} c2 {[%clk 00:15:49]} {[%emt 00:01:30]} 53. Qxh7 {[%clk
00:02:26]} {[%emt 00:00:47]} c1=Q+ {[%clk 00:14:32]} {[%emt 00:01:47]} 54. Nxc1
{[%clk 00:02:55]} {[%emt 00:00:02]} Qxc1+ {[%clk 00:14:56]} {[%emt 00:00:05]}
55. Kh2 {[%clk 00:03:18]} {[%emt 00:00:07]} Qf4+ {[%clk 00:14:51]} {[%emt
00:00:36]} 56. Kh3 {[%clk 00:02:20]} {[%emt 00:01:28]} Nd6 {[%clk 00:13:31]}
{[%emt 00:01:50]} 57. h6 {[%clk 00:00:50]} {[%emt 00:02:00]} Nf7 {[%clk
00:12:56]} {[%emt 00:01:04]} 58. g3 {[%clk 00:00:55]} {[%emt 00:00:26]} Ng5+
{[%clk 00:13:12]} {[%emt 00:00:13]} 59. Kh2 {[%clk 00:01:20]} {[%emt 00:00:05]}
Qxf2+ {[%clk 00:13:33]} {[%emt 00:00:09]} 0-1

[Event "21th Rochefort Chess Festival - Masters"]
[Site "Rochefort, France"]
[Date "2023.02.13"]
[Round "4.1"]
[White "Harsha Bharathakoti"]
[Black "Eugene, Floryan"]
[Result "1-0"]
[TimeControl "1h30 + [30'']"]
[WhiteElo "2599"]
[BlackElo "2393"]

1. d4 {[%clk 01:27:34]} {[%emt 00:03:15]} d5 {[%clk 01:30:55]} {[%emt
00:00:15]} 2. c4 {[%clk 01:27:07]} {[%emt 00:00:57]} e6 {[%clk 01:31:20]}
{[%emt 00:00:06]} 3. Nc3 {[%clk 01:25:58]} {[%emt 00:01:37]} Nf6 {[%clk
01:30:43]} {[%emt 00:01:07]} 4. Nf3 {[%clk 01:23:56]} {[%emt 00:02:33]} dxc4
{[%clk 01:30:08]} {[%emt 00:01:05]} 5. e4 {[%clk 01:24:09]} {[%emt 00:00:16]}
b5 {[%clk 01:30:19]} {[%emt 00:00:19]} 6. e5 {[%clk 01:24:12]} {[%emt
00:00:27]} Nd5 {[%clk 01:30:43]} {[%emt 00:00:05]} 7. Nxb5 {[%clk 01:24:37]}
{[%emt 00:00:06]} Nb6 {[%clk 01:31:06]} {[%emt 00:00:06]} 8. Be2 {[%clk
01:21:09]} {[%emt 00:03:57]} Be7 {[%clk 01:31:04]} {[%emt 00:00:33]} 9. Be3
{[%clk 01:20:04]} {[%emt 00:01:36]} Nc6 {[%clk 01:27:54]} {[%emt 00:03:40]} 10.
a3 {[%clk 01:19:22]} {[%emt 00:01:12]} Bb7 {[%clk 01:10:12]} {[%emt 00:18:12]}
11. Qc2 {[%clk 01:17:41]} {[%emt 00:02:11]} Qd7 {[%clk 01:05:33]} {[%emt
00:05:10]} 12. Nc3 {[%clk 01:17:58]} {[%emt 00:00:13]} O-O-O {[%clk 00:45:54]}
{[%emt 00:20:08]} 13. Rd1 {[%clk 00:54:11]} {[%emt 00:24:17]} f5 {[%clk
00:35:46]} {[%emt 00:10:39]} 14. d5 {[%clk 00:43:18]} {[%emt 00:11:23]} Na5
{[%clk 00:29:18]} {[%emt 00:06:59]} 15. dxe6 {[%clk 00:41:00]} {[%emt
00:02:47]} Qxe6 {[%clk 00:29:40]} {[%emt 00:00:08]} 16. O-O {[%clk 00:38:51]}
{[%emt 00:02:39]} Kb8 {[%clk 00:23:07]} {[%emt 00:07:04]} 17. Nb5 {[%clk
00:34:38]} {[%emt 00:04:43]} Qg6 {[%clk 00:10:47]} {[%emt 00:12:49]} 18. b4
{[%clk 00:19:03]} {[%emt 00:16:05]} Be4 {[%clk 00:08:11]} {[%emt 00:03:06]} 19.
Qc3 {[%clk 00:06:46]} {[%emt 00:12:47]} Nd5 {[%clk 00:04:33]} {[%emt 00:04:08]}
20. Bxa7+ {[%clk 00:02:01]} {[%emt 00:05:14]} Kb7 {[%clk 00:03:24]} {[%emt
00:01:39]} 21. Rxd5 {[%clk 00:01:40]} {[%emt 00:00:52]} Rxd5 {[%clk 00:02:41]}
{[%emt 00:01:13]} 22. bxa5 {[%clk 00:00:35]} {[%emt 00:01:35]} Rxb5 {[%clk
00:02:04]} {[%emt 00:01:06]} 23. Bxc4 {[%clk 00:00:44]} {[%emt 00:00:21]} c6
{[%clk 00:00:37]} {[%emt 00:01:57]} 24. Bxb5 {[%clk 00:00:32]} {[%emt
00:00:42]} cxb5 {[%clk 00:01:04]} {[%emt 00:00:03]} 25. Bb6 {[%clk 00:00:31]}
{[%emt 00:00:31]} Rc8 {[%clk 00:01:13]} {[%emt 00:00:21]} 26. Qe3 {[%clk
00:00:50]} {[%emt 00:00:12]} f4 {[%clk 00:01:12]} {[%emt 00:00:31]} 27. Qxf4
{[%clk 00:00:57]} {[%emt 00:00:23]} Rf8 {[%clk 00:01:39]} {[%emt 00:00:04]} 28.
Qg3 {[%clk 00:01:23]} {[%emt 00:00:03]} Bxa3 {[%clk 00:01:06]} {[%emt
00:01:03]} 29. Ng5 {[%clk 00:01:13]} {[%emt 00:00:40]} Bc6 {[%clk 00:00:45]}
{[%emt 00:00:51]} 30. Qxa3 {[%clk 00:01:00]} {[%emt 00:00:43]} Qxg5 {[%clk
00:01:07]} {[%emt 00:00:09]} 31. f3 {[%clk 00:01:03]} {[%emt 00:00:26]} Re8
{[%clk 00:01:13]} {[%emt 00:00:23]} 32. Bd4 {[%clk 00:00:40]} {[%emt 00:00:54]}
Qe7 {[%clk 00:01:01]} {[%emt 00:00:42]} 33. a6+ {[%clk 00:00:37]} {[%emt
00:00:33]} Ka8 {[%clk 00:01:15]} {[%emt 00:00:15]} 34. Qc3 {[%clk 00:00:36]}
{[%emt 00:00:31]} Bd5 {[%clk 00:01:12]} {[%emt 00:00:34]} 35. Qa5 {[%clk
00:00:32]} {[%emt 00:00:34]} Rb8 {[%clk 00:00:45]} {[%emt 00:00:56]} 36. Rc1
{[%clk 00:00:52]} {[%emt 00:00:10]} Qh4 {[%clk 00:00:37]} {[%emt 00:00:38]} 37.
Bf2 {[%clk 00:00:31]} {[%emt 00:00:51]} Qd8 {[%clk 00:00:33]} {[%emt 00:00:34]}
38. Rc7 {[%clk 00:00:33]} {[%emt 00:00:28]} Bb7 {[%clk 00:00:42]} {[%emt
00:00:21]} 39. axb7# {[%clk 00:00:59]} {[%emt 00:00:05]} 1-0

[Event "21th Rochefort Chess Festival - Masters"]
[Site "Rochefort, France"]
[Date "2023.02.13"]
[Round "4.3"]
[White "Lamaze, Simon"]
[Black "Ghazarian, Kirk"]
[Result "0-1"]
[TimeControl "1h30 + [30'']"]
[WhiteElo "2372"]
[BlackElo "2471"]

1. e4 {[%clk 01:30:51]} {[%emt 00:00:08]} c5 {[%clk 01:30:50]} {[%emt
00:00:10]} 2. Nf3 {[%clk 01:30:25]} {[%emt 00:00:57]} Nc6 {[%clk 01:31:12]}
{[%emt 00:00:08]} 3. d4 {[%clk 01:30:51]} {[%emt 00:00:04]} cxd4 {[%clk
01:31:30]} {[%emt 00:00:12]} 4. Nxd4 {[%clk 01:31:17]} {[%emt 00:00:04]} Nf6
{[%clk 01:30:59]} {[%emt 00:01:01]} 5. Nc3 {[%clk 01:31:35]} {[%emt 00:00:12]}
e5 {[%clk 01:31:16]} {[%emt 00:00:13]} 6. Ndb5 {[%clk 01:32:00]} {[%emt
00:00:05]} d6 {[%clk 01:31:16]} {[%emt 00:00:30]} 7. Nd5 {[%clk 01:32:23]}
{[%emt 00:00:07]} Nxd5 {[%clk 01:31:37]} {[%emt 00:00:08]} 8. exd5 {[%clk
01:32:49]} {[%emt 00:00:04]} Nb8 {[%clk 01:31:38]} {[%emt 00:00:29]} 9. a4
{[%clk 01:33:11]} {[%emt 00:00:08]} Be7 {[%clk 01:31:53]} {[%emt 00:00:14]} 10.
Bd2 {[%clk 01:33:23]} {[%emt 00:00:19]} O-O {[%clk 01:30:22]} {[%emt 00:02:01]}
11. Be2 {[%clk 01:33:15]} {[%emt 00:00:39]} Nd7 {[%clk 01:30:09]} {[%emt
00:00:41]} 12. a5 {[%clk 01:33:31]} {[%emt 00:00:15]} a6 {[%clk 01:17:59]}
{[%emt 00:12:40]} 13. Na3 {[%clk 01:33:30]} {[%emt 00:00:30]} Nf6 {[%clk
01:17:42]} {[%emt 00:00:47]} 14. Bb4 {[%clk 01:27:22]} {[%emt 00:06:39]} b5
{[%clk 01:06:16]} {[%emt 00:11:56]} 15. c4 {[%clk 01:23:58]} {[%emt 00:03:54]}
Bb7 {[%clk 01:04:26]} {[%emt 00:02:21]} 16. cxb5 {[%clk 01:15:27]} {[%emt
00:09:01]} axb5 {[%clk 00:59:24]} {[%emt 00:05:32]} 17. Nxb5 {[%clk 01:10:32]}
{[%emt 00:05:25]} Nxd5 {[%clk 00:58:31]} {[%emt 00:01:23]} 18. Bd2 {[%clk
01:10:43]} {[%emt 00:00:18]} Nf4 {[%clk 00:53:48]} {[%emt 00:05:12]} 19. Bxf4
{[%clk 01:10:06]} {[%emt 00:01:08]} exf4 {[%clk 00:54:15]} {[%emt 00:00:03]} 20.
O-O {[%clk 01:02:39]} {[%emt 00:07:57]} Rxa5 {[%clk 00:54:33]} {[%emt
00:00:12]} 21. Rxa5 {[%clk 01:02:29]} {[%emt 00:00:40]} Qxa5 {[%clk 00:54:59]}
{[%emt 00:00:04]} 22. Nxd6 {[%clk 01:02:09]} {[%emt 00:00:49]} Bxg2 {[%clk
00:48:56]} {[%emt 00:06:34]} 23. Kxg2 {[%clk 01:02:33]} {[%emt 00:00:06]} Rd8
{[%clk 00:49:08]} {[%emt 00:00:18]} 24. Qb3 {[%clk 01:01:16]} {[%emt 00:01:47]}
Bxd6 {[%clk 00:45:49]} {[%emt 00:03:49]} 25. Qf3 {[%clk 00:59:56]} {[%emt
00:01:49]} Qg5+ {[%clk 00:39:22]} {[%emt 00:06:57]} 26. Kh1 {[%clk 01:00:00]}
{[%emt 00:00:26]} Bc5 {[%clk 00:37:35]} {[%emt 00:02:17]} 27. Bc4 {[%clk
00:56:26]} {[%emt 00:04:04]} g6 {[%clk 00:35:09]} {[%emt 00:02:56]} 28. b3
{[%clk 00:50:43]} {[%emt 00:06:14]} Qe5 {[%clk 00:31:51]} {[%emt 00:03:47]} 29.
Qb7 {[%clk 00:49:44]} {[%emt 00:01:30]} Be7 {[%clk 00:31:33]} {[%emt 00:00:48]}
30. Qf3 {[%clk 00:49:42]} {[%emt 00:00:32]} Kg7 {[%clk 00:29:29]} {[%emt
00:02:33]} 31. Qb7 {[%clk 00:45:11]} {[%emt 00:05:02]} Rd4 {[%clk 00:28:35]}
{[%emt 00:01:23]} 32. Qf3 {[%clk 00:41:00]} {[%emt 00:04:41]} Bc5 {[%clk
00:27:28]} {[%emt 00:01:37]} 33. Kg2 {[%clk 00:41:14]} {[%emt 00:00:16]} Rd2
{[%clk 00:26:43]} {[%emt 00:01:15]} 34. Kg1 {[%clk 00:36:09]} {[%emt 00:05:36]}
Qd4 {[%clk 00:18:58]} {[%emt 00:08:14]} 35. Bb5 {[%clk 00:33:44]} {[%emt
00:02:55]} h5 {[%clk 00:16:48]} {[%emt 00:02:38]} 36. Bc4 {[%clk 00:33:18]}
{[%emt 00:00:58]} Rc2 {[%clk 00:14:26]} {[%emt 00:02:52]} 37. Qg2 {[%clk
00:30:20]} {[%emt 00:03:29]} f5 {[%clk 00:08:51]} {[%emt 00:06:05]} 38. Qf3
{[%clk 00:27:37]} {[%emt 00:03:13]} Qe4 {[%clk 00:04:33]} {[%emt 00:04:47]} 39.
Qd1 {[%clk 00:28:00]} {[%emt 00:00:06]} f3 {[%clk 00:03:53]} {[%emt 00:01:11]}
40. Qd7+ {[%clk 00:28:25]} {[%emt 00:00:05]} Kh6 {[%clk 00:04:02]} {[%emt
00:00:21]} 41. Qc7 {[%clk 00:28:50]} {[%emt 00:00:06]} Rxf2 {[%clk 00:03:00]}
{[%emt 00:01:31]} 42. Qxc5 {[%clk 00:29:04]} {[%emt 00:00:17]} Rg2+ {[%clk
00:03:11]} {[%emt 00:00:18]} 43. Kh1 {[%clk 00:29:32]} {[%emt 00:00:01]} Rxh2+
{[%clk 00:03:31]} {[%emt 00:00:11]} 0-1



[ePGN "0.1;DGT LiveChess/2.2.5"]

[Event "21th Rochefort Chess Festival - Masters"]
[Site "Rochefort, France"]
[Date "2023.02.14"]
[Round "5.1"]
[White "Ghosh, Diptayan"]
[Black "Harsha Bharathakoti"]
[Result "1-0"]
[TimeControl "1h30 + [30'']"]
[WhiteElo "2553"]
[BlackElo "2599"]

1. Nf3 {[%clk 01:22:12]} {[%emt 00:08:47]} d5 {[%clk 01:26:45]} {[%emt
00:04:45]} 2. e3 {[%clk 01:22:54]} {[%emt 00:00:18]} Nf6 {[%clk 01:23:34]}
{[%emt 00:03:41]} 3. c4 {[%clk 01:20:50]} {[%emt 00:02:34]} e6 {[%clk
01:22:41]} {[%emt 00:01:23]} 4. Nc3 {[%clk 01:21:15]} {[%emt 00:00:05]} b6
{[%clk 01:19:35]} {[%emt 00:03:37]} 5. cxd5 {[%clk 01:21:15]} {[%emt 00:00:30]}
exd5 {[%clk 01:19:58]} {[%emt 00:00:06]} 6. g3 {[%clk 01:21:40]} {[%emt
00:00:04]} Bb7 {[%clk 01:16:45]} {[%emt 00:03:44]} 7. Bg2 {[%clk 01:21:56]}
{[%emt 00:00:13]} Nbd7 {[%clk 01:12:47]} {[%emt 00:04:29]} 8. O-O {[%clk
01:21:16]} {[%emt 00:01:09]} a6 {[%clk 01:12:33]} {[%emt 00:00:45]} 9. b3
{[%clk 01:21:24]} {[%emt 00:00:22]} Bd6 {[%clk 01:11:07]} {[%emt 00:01:55]} 10.
Bb2 {[%clk 01:21:48]} {[%emt 00:00:06]} O-O {[%clk 01:11:32]} {[%emt 00:00:06]}
11. Rc1 {[%clk 01:22:15]} {[%emt 00:00:03]} Re8 {[%clk 01:11:06]} {[%emt
00:00:56]} 12. Re1 {[%clk 01:22:32]} {[%emt 00:00:13]} Rc8 {[%clk 01:04:51]}
{[%emt 00:06:45]} 13. Re2 {[%clk 01:21:46]} {[%emt 00:01:16]} Qe7 {[%clk
00:47:50]} {[%emt 00:17:31]} 14. d3 {[%clk 01:14:50]} {[%emt 00:07:26]} c5
{[%clk 00:30:34]} {[%emt 00:17:46]} 15. d4 {[%clk 01:12:40]} {[%emt 00:02:39]}
c4 {[%clk 00:26:38]} {[%emt 00:04:27]} 16. bxc4 {[%clk 01:03:15]} {[%emt
00:09:55]} Rxc4 {[%clk 00:23:49]} {[%emt 00:03:18]} 17. Nd2 {[%clk 01:01:30]}
{[%emt 00:02:16]} Rcc8 {[%clk 00:11:31]} {[%emt 00:12:48]} 18. e4 {[%clk
00:57:19]} {[%emt 00:04:41]} Bb4 {[%clk 00:10:02]} {[%emt 00:01:59]} 19. e5
{[%clk 00:47:20]} {[%emt 00:10:29]} Bxc3 {[%clk 00:10:25]} {[%emt 00:00:07]} 20.
Rxc3 {[%clk 00:45:21]} {[%emt 00:02:28]} Rxc3 {[%clk 00:07:33]} {[%emt
00:03:23]} 21. Bxc3 {[%clk 00:45:37]} {[%emt 00:00:13]} Ne4 {[%clk 00:07:58]}
{[%emt 00:00:05]} 22. Nxe4 {[%clk 00:42:44]} {[%emt 00:03:23]} dxe4 {[%clk
00:08:24]} {[%emt 00:00:05]} 23. d5 {[%clk 00:38:55]} {[%emt 00:04:18]} Qc5
{[%clk 00:06:30]} {[%emt 00:02:24]} 24. Rc2 {[%clk 00:36:25]} {[%emt 00:03:00]}
Qb5 {[%clk 00:03:58]} {[%emt 00:03:03]} 25. Bxe4 {[%clk 00:24:34]} {[%emt
00:12:21]} Nxe5 {[%clk 00:04:21]} {[%emt 00:00:06]} 26. Re2 {[%clk 00:23:24]}
{[%emt 00:01:40]} f6 {[%clk 00:02:21]} {[%emt 00:02:31]} 27. Bxe5 {[%clk
00:22:01]} {[%emt 00:01:53]} fxe5 {[%clk 00:00:34]} {[%emt 00:02:18]} 28. Rc2
{[%clk 00:20:31]} {[%emt 00:02:00]} Qd7 {[%clk 00:00:59]} {[%emt 00:00:05]} 29.
Qd3 {[%clk 00:19:23]} {[%emt 00:01:38]} Kh8 {[%clk 00:00:33]} {[%emt 00:00:55]}
30. Rd2 {[%clk 00:18:45]} {[%emt 00:01:09]} h6 {[%clk 00:00:35]} {[%emt
00:00:28]} 31. d6 {[%clk 00:18:06]} {[%emt 00:01:09]} Bxe4 {[%clk 00:01:01]}
{[%emt 00:00:04]} 32. Qxe4 {[%clk 00:18:32]} {[%emt 00:00:03]} b5 {[%clk
00:00:55]} {[%emt 00:00:36]} 33. Rd5 {[%clk 00:18:07]} {[%emt 00:00:55]} Qe6
{[%clk 00:00:42]} {[%emt 00:00:44]} 34. f4 {[%clk 00:16:48]} {[%emt 00:01:49]}
Qg4 {[%clk 00:00:58]} {[%emt 00:00:14]} 35. d7 {[%clk 00:16:21]} {[%emt
00:00:57]} Rd8 {[%clk 00:01:25]} {[%emt 00:00:03]} 36. Qxe5 {[%clk 00:16:44]}
{[%emt 00:00:06]} Qg6 {[%clk 00:01:31]} {[%emt 00:00:23]} 37. f5 {[%clk
00:15:38]} {[%emt 00:01:36]} Qc6 {[%clk 00:00:37]} {[%emt 00:01:25]} 38. Rd6
{[%clk 00:14:36]} {[%emt 00:01:32]} Qc1+ {[%clk 00:00:53]} {[%emt 00:00:14]} 39.
Kg2 {[%clk 00:15:04]} {[%emt 00:00:02]} Kh7 {[%clk 00:00:54]} {[%emt 00:00:30]}
40. Qe4 {[%clk 00:13:06]} {[%emt 00:02:25]} Kh8 {[%clk 00:00:34]} {[%emt
00:00:53]} 41. f6 {[%clk 00:12:09]} {[%emt 00:01:26]} 1-0

[Event "21th Rochefort Chess Festival - Masters"]
[Site "Rochefort, France"]
[Date "2023.02.14"]
[Round "5.4"]
[White "Priyanka Nutakki"]
[Black "Nikolov, Momchil"]
[Result "0-1"]
[TimeControl "1h30 + [30'']"]
[WhiteElo "2302"]
[BlackElo "2480"]

1. d4 {[%clk 01:26:48]} {[%emt 00:04:10]} Nf6 {[%clk 01:30:51]} {[%emt
00:00:09]} 2. c4 {[%clk 01:27:04]} {[%emt 00:00:14]} e6 {[%clk 01:31:13]}
{[%emt 00:00:07]} 3. Nf3 {[%clk 01:26:47]} {[%emt 00:00:48]} b6 {[%clk
01:31:24]} {[%emt 00:00:19]} 4. g3 {[%clk 01:27:05]} {[%emt 00:00:12]} Bb7
{[%clk 01:31:31]} {[%emt 00:00:22]} 5. Bg2 {[%clk 01:27:29]} {[%emt 00:00:07]}
Be7 {[%clk 01:31:42]} {[%emt 00:00:19]} 6. O-O {[%clk 01:27:54]} {[%emt
00:00:06]} O-O {[%clk 01:32:04]} {[%emt 00:00:07]} 7. d5 {[%clk 01:27:20]}
{[%emt 00:01:05]} exd5 {[%clk 01:31:38]} {[%emt 00:00:56]} 8. Nh4 {[%clk
01:27:45]} {[%emt 00:00:05]} c6 {[%clk 01:31:35]} {[%emt 00:00:32]} 9. cxd5
{[%clk 01:27:53]} {[%emt 00:00:23]} Nxd5 {[%clk 01:31:52]} {[%emt 00:00:12]} 10.
Nf5 {[%clk 01:28:19]} {[%emt 00:00:04]} Nc7 {[%clk 01:31:22]} {[%emt 00:00:59]}
11. e4 {[%clk 01:25:01]} {[%emt 00:03:49]} d5 {[%clk 01:31:05]} {[%emt
00:00:47]} 12. Nc3 {[%clk 01:24:44]} {[%emt 00:00:47]} Bf6 {[%clk 01:27:54]}
{[%emt 00:03:41]} 13. exd5 {[%clk 01:19:29]} {[%emt 00:05:46]} cxd5 {[%clk
01:27:52]} {[%emt 00:00:31]} 14. Bf4 {[%clk 01:16:10]} {[%emt 00:03:50]} Nba6
{[%clk 01:27:25]} {[%emt 00:00:56]} 15. Rc1 {[%clk 01:10:30]} {[%emt 00:06:10]}
Bc8 {[%clk 01:13:56]} {[%emt 00:13:58]} 16. Ne3 {[%clk 01:02:07]} {[%emt
00:08:53]} d4 {[%clk 01:02:59]} {[%emt 00:11:27]} 17. Ncd5 {[%clk 01:00:10]}
{[%emt 00:02:27]} dxe3 {[%clk 01:00:09]} {[%emt 00:03:20]} 18. Bxc7 {[%clk
00:54:55]} {[%emt 00:05:45]} Nxc7 {[%clk 00:59:08]} {[%emt 00:01:31]} 19. Nxf6+
{[%clk 00:52:53]} {[%emt 00:02:32]} Qxf6 {[%clk 00:59:15]} {[%emt 00:00:22]} 20.
Rxc7 {[%clk 00:46:13]} {[%emt 00:07:11]} Ba6 {[%clk 00:58:25]} {[%emt
00:01:20]} 21. fxe3 {[%clk 00:46:31]} {[%emt 00:00:13]} Rad8 {[%clk 00:54:36]}
{[%emt 00:04:18]} 22. Qc1 {[%clk 00:42:28]} {[%emt 00:04:33]} Bxf1 {[%clk
00:54:44]} {[%emt 00:00:21]} 23. Bxf1 {[%clk 00:42:56]} {[%emt 00:00:03]} Qf3
{[%clk 00:52:59]} {[%emt 00:02:15]} 0-1